bitfinex/quotes_SOLUSD_20220212
["timestamp","ask_amount","ask_price","bid_price","bid_amount"]
[1644681723883,5.247,95.329,95.252,5.246]
[1644681724286,43.18190877,95.328,95.252,5.246]
[1644681724482,5.247,95.327,95.252,5.246]
[1644681724883,15.7499,95.32,95.252,5.246]
[1644681725086,15.11,95.31,95.252,5.246]
[1644681725282,43.4077294,95.309,95.221,34.5481361]
[1644681725484,48.6557294,95.309,95.222,5.248]
[1644681726683,48.6557294,95.309,95.223,2.62390296]
[1644681726887,43.4077294,95.309,95.223,2.62390296]
[1644681727887,5.248,95.308,95.223,2.62390296]
[1644681731694,43.4077294,95.309,95.224,5.248]
[1644681732294,43.4077294,95.309,95.225,2.62390296]
[1644681732694,43.4077294,95.309,95.226,5.248]
[1644681733095,43.4077294,95.309,95.227,2.62390296]
[1644681733297,48.6557294,95.309,95.227,2.62390296]
[1644681734496,5.248,95.308,95.227,2.62390296]
[1644681734699,43.4077294,95.309,95.227,2.62390296]
[1644681734896,42.9077294,95.309,95.228,5.248]
[1644681735298,42.9077294,95.309,95.229,2.62390296]
[1644681735524,5.248,95.308,95.221,5.248]
[1644681735712,47.1573,95.307,95.216,16.1242]
[1644681735913,5.248,95.306,95.216,16.1242]
[1644681736114,5.248,95.306,95.214,2.62390296]
[1644681736414,5.248,95.306,95.215,5.248]
[1644681736817,5.248,95.306,95.216,2.62390296]
[1644681737016,47.1573,95.307,95.216,2.62390296]
[1644681737219,47.1573,95.307,95.217,5.248]
[1644681737617,47.1573,95.307,95.218,2.62390296]
[1644681737919,5.248,95.306,95.218,2.62390296]
[1644681738120,15.7524,95.3,95.195,2.62390296]
[1644681738317,15.11,95.29,95.195,2.62390296]
[1644681738517,15.11,95.28,95.193,5.248]
[1644681738718,15.11,95.28,95.194,2.62390296]
[1644681738921,5.25,95.279,95.194,2.62390296]
[1644681739317,28.0479,95.279,95.194,2.62390296]
[1644681739517,28.0479,95.279,95.195,0.25]
[1644681739719,22.7979,95.279,95.195,0.25]
[1644681739920,39.14136415,95.278,95.195,47.01836153]
[1644681740619,39.14136415,95.278,95.195,46.76836153]
[1644681741019,39.14136415,95.278,95.191,5.25]
[1644681741219,5.25,95.277,95.183,2.62390296]
[1644681741419,24.5536,95.276,95.183,2.62390296]
[1644681741620,5.25,95.275,95.183,2.62390296]
[1644681742018,5.25,95.275,95.185,106.0]
[1644681742222,24.5536,95.276,95.186,5.25]
[1644681742418,24.5536,95.276,95.186,2.62390296]
[1644681742618,24.5536,95.276,95.187,7.87390296]
[1644681742819,24.5536,95.276,95.187,2.62390296]
[1644681743018,24.5536,95.276,95.188,2.62390296]
[1644681744521,5.25,95.275,95.188,2.62390296]
[1644681745622,24.5536,95.276,95.188,2.62390296]
[1644681746024,5.25,95.277,95.188,17.88861254]
[1644681746225,39.14136415,95.278,95.189,111.25]
[1644681746424,39.14136415,95.278,95.189,124.28439605]
[1644681746625,39.14136415,95.278,95.191,106.0]
[1644681746823,39.14136415,95.278,95.21,15.7494]
[1644681747024,39.14136415,95.278,95.211,16.86155791]
[1644681747227,39.14136415,95.278,95.212,106.0]
[1644681747424,39.14136415,95.278,95.213,5.249]
[1644681747626,45.5876,95.306,95.213,5.249]
[1644681747823,5.248,95.305,95.214,2.62390296]
[1644681749026,15.7522,95.3,95.194,2.62390296]
[1644681749225,5.249,95.299,95.195,5.249]
[1644681749525,45.44921573,95.289,95.194,2.62390296]
[1644681749727,24.2964,95.288,95.194,2.62390296]
[1644681749925,5.249,95.287,95.194,2.62390296]
[1644681750425,5.249,95.287,95.195,0.25]
[1644681750624,5.249,95.287,95.194,2.62390296]
[1644681750824,15.7553,95.28,95.196,2.62390296]
[1644681751028,5.25,95.279,95.196,2.62390296]
[1644681751227,5.25,95.279,95.183,2.62390296]
[1644681751424,5.25,95.279,95.163,2.62390296]
[1644681751626,5.25,95.279,95.172,2.62390296]
[1644681752025,5.25,95.279,95.173,40.91730666]
[1644681752231,15.7582,95.27,95.173,40.91730666]
[1644681752426,42.32305682,95.259,95.174,7.87390296]
[1644681752626,47.3384,95.258,95.174,7.87390296]
[1644681752827,5.251,95.257,95.175,2.62390296]
[1644681753228,5.251,95.257,95.176,0.25]
[1644681753527,5.251,95.257,95.164,2.62390296]
[1644681753727,5.251,95.257,95.177,2.62390296]
[1644681754129,47.3384,95.258,95.177,2.62390296]
[1644681754331,47.3384,95.258,95.177,19.15972365]
[1644681754733,5.251,95.286,95.178,2.87390296]
[1644681754930,53.5372,95.299,95.18,15.7553]
[1644681755129,48.2862,95.299,95.18,15.7553]
[1644681755329,48.2862,95.299,95.181,34.4135042]
[1644681755631,48.4583111,95.298,95.192,5.8205701]
[1644681755829,53.7073111,95.298,95.192,5.8205701]
[1644681756029,53.7073111,95.298,95.193,19.15972365]
[1644681756330,53.7073111,95.298,95.194,2.62390296]
[1644681756729,53.7073111,95.298,95.194,108.62390296]
[1644681757130,53.7073111,95.298,95.195,2.62390296]
[1644681757332,53.7073111,95.298,95.195,7.87290296]
[1644681757529,53.7073111,95.298,95.196,16.53582069]
[1644681757829,53.7073111,95.298,95.201,106.0]
[1644681758229,53.7073111,95.298,95.202,2.62390296]
[1644681758931,53.7073111,95.298,95.202,19.15972365]
[1644681759132,53.7073111,95.298,95.211,106.0]
[1644681759333,53.7073111,95.298,95.213,106.0]
[1644681759935,53.7073111,95.298,95.214,2.62390296]
[1644681761137,53.7073111,95.298,95.22,15.7489]
[1644681761335,53.7073111,95.298,95.221,106.0]
[1644681761539,53.7073111,95.298,95.221,108.62390296]
[1644681761759,53.7073111,95.298,95.222,2.62390296]
[1644681762337,48.4583111,95.298,95.222,2.62390296]
[1644681763137,5.248,95.297,95.222,2.62390296]
[1644681763340,5.248,95.297,95.21,2.62390296]
[1644681764739,5.248,95.297,95.211,0.25]
[1644681766639,5.248,95.297,95.212,2.62390296]
[1644681766841,15.7541,95.29,95.212,2.62390296]
[1644681767041,34.26142308,95.279,95.212,2.62390296]
[1644681767242,5.249,95.278,95.212,2.62390296]
[1644681767441,56.95592308,95.279,95.212,2.62390296]
[1644681768740,22.6945,95.279,95.212,2.62390296]
[1644681769741,24.7275,95.299,95.212,2.62390296]
[1644681769742,44.6558414,95.289,95.221,106.0]
[1644681769944,44.6558414,95.289,95.22,15.7488]
[1644681770145,44.6558414,95.289,95.222,2.62390296]
[1644681772944,5.249,95.288,95.211,0.25]
[1644681773144,27.859,95.288,95.211,0.25]
[1644681773541,15.11,95.28,95.211,0.25]
[1644681773843,5.249,95.279,95.211,0.25]
[1644681774247,62.0,95.277,95.135,2.87613457]
[1644681774445,188.91,95.26,95.15,15.7429]
[1644681774646,188.91,95.26,95.112,2.87613457]
[1644681774647,0.48,95.251,95.112,2.87613457]
[1644681774845,62.0,95.24,95.102,15.7855]
[1644681775045,62.0,95.24,95.113,29.19944295]
[1644681775046,206.99199838,95.23,95.113,29.19944295]
[1644681775354,188.91,95.21,95.084,15.887]
[1644681775549,188.91,95.21,95.062,18.83737582]
[1644681775550,15.11,95.2,95.062,18.83737582]
[1644681775858,2.97199838,95.189,95.048,18.83737582]
[1644681776044,58.3439,95.189,95.048,18.83737582]
[1644681776247,15.7803,95.16,95.048,18.83737582]
[1644681776445,15.11,95.15,95.048,18.83737582]
[1644681776647,188.91,95.14,95.068,8.03e-06]
[1644681776847,15.11,95.13,95.018,15.9117]
[1644681777045,15.11,95.13,95.021,29.2742284]
[1644681777244,47.06983664,95.128,95.021,29.2742284]
[1644681777444,47.06983664,95.128,95.003,18.8022036]
[1644681777445,15.7864,95.12,95.008,2.62390296]
[1644681777645,15.11,95.11,95.008,2.62390296]
[1644681777844,5.259,95.109,95.022,18.8022036]
[1644681778264,5.259,95.109,95.002,18.8022036]
[1644681778265,44.7506758,95.108,95.002,18.8022036]
[1644681778445,5.26,95.107,95.002,18.8022036]
[1644681778745,5.26,95.107,94.996,34.26415603]
[1644681778746,5.26,95.107,95.005,18.8022036]
[1644681778946,44.7506758,95.108,95.005,18.8022036]
[1644681779147,5.26,95.107,95.006,2.62390296]
[1644681779545,5.26,95.107,95.007,18.8022036]
[1644681779947,5.26,95.107,95.01,15.7871]
[1644681780148,47.1547,95.127,95.01,15.7871]
[1644681780349,47.1547,95.127,95.011,30.59731022]
[1644681780551,5.259,95.126,95.011,50.77844255]
[1644681780751,47.1547,95.127,95.012,30.59731022]
[1644681780951,47.33939405,95.126,95.013,45.6135489]
[1644681781147,47.33939405,95.126,95.041,39.22831829]
[1644681781348,5.258,95.125,95.041,39.22831829]
[1644681781565,5.258,95.125,95.042,2.62390296]
[1644681782449,12.64,95.12,95.042,2.62390296]
[1644681782651,5.258,95.119,95.042,2.62390296]
[1644681782854,47.33939405,95.126,95.043,5.258]
[1644681783255,47.33939405,95.126,95.044,40.42930896]
[1644681783652,47.33939405,95.126,95.045,2.62390296]
[1644681784858,47.33939405,95.126,95.05,15.7805]
[1644681785059,5.258,95.125,95.05,15.7805]
[1644681785260,12.64,95.16,95.05,15.7805]
[1644681785261,5.257,95.167,95.051,2.62390296]
[1644681785462,5.257,95.168,95.06,12.64]
[1644681785660,53.3864,95.197,95.06,12.64]
[1644681785863,53.3864,95.197,95.061,27.47708095]
[1644681786061,42.49342511,95.196,95.08,15.7717]
[1644681786261,42.49342511,95.196,95.081,37.805406]
[1644681786262,5.255,95.195,95.081,37.805406]
[1644681786461,12.64,95.19,95.081,40.42930896]
[1644681786759,111.255,95.189,95.082,7.87890296]
[1644681786963,5.255,95.189,95.082,2.62390296]
[1644681787163,111.255,95.189,95.081,37.805406]
[1644681787462,15.7761,95.18,95.081,37.805406]
[1644681787662,42.5627937,95.178,95.081,37.805406]
[1644681787863,5.255,95.177,95.082,2.62390296]
[1644681788665,15.7776,95.17,95.07,2.62390296]
[1644681788863,12.64,95.16,95.06,15.7783]
[1644681789062,12.64,95.16,95.056,5.255]
[1644681789264,111.257,95.159,95.056,5.255]
[1644681789463,44.27031187,95.158,95.057,39.69646914]
[1644681789665,5.257,95.157,95.057,39.69646914]
[1644681790264,5.257,95.157,95.028,2.62390296]
[1644681790469,24.8734,95.156,95.028,2.62390296]
[1644681790668,5.258,95.155,95.028,2.62390296]
[1644681790870,15.7806,95.15,95.04,15.7821]
[1644681791070,12.64,95.14,95.012,5.258]
[1644681791269,29.8345,95.139,94.992,17.5022036]
[1644681791468,29.8345,95.139,94.994,2.62390296]
[1644681791669,0.48,95.121,94.994,2.62390296]
[1644681791870,106.0,95.109,94.994,2.62390296]
[1644681792068,5.26,95.108,94.994,2.62390296]
[1644681792269,46.75244304,95.107,94.995,38.63315072]
[1644681792469,5.26,95.106,94.995,61.39535432]
[1644681792668,5.26,95.106,94.996,2.62390296]
[1644681793067,15.7893,95.1,94.996,2.62390296]
[1644681793268,12.64,95.09,94.996,2.62390296]
[1644681793467,37.72682002,95.088,94.996,2.62390296]
[1644681793670,37.72682002,95.088,94.995,38.63315072]
[1644681794071,37.72682002,95.088,95.0,15.7894]
[1644681794468,37.72682002,95.088,95.001,20.12610656]
[1644681794671,5.26,95.087,95.001,20.12610656]
[1644681794870,5.26,95.087,95.002,2.62390296]
[1644681795469,12.64,95.08,95.002,2.62390296]
[1644681795669,5.26,95.079,94.981,5.26]
[1644681795870,5.261,95.086,94.981,5.26]
[1644681796072,28.4354,95.087,94.982,17.5022036]
[1644681796272,5.261,95.085,94.99,15.7912]
[1644681796469,5.261,95.086,94.99,15.7912]
[1644681796670,5.261,95.086,94.991,2.62390296]
[1644681797471,23.1744,95.087,94.992,5.261]
[1644681797870,23.1744,95.087,95.0,15.79]
[1644681798272,23.1744,95.087,95.001,2.62390296]
[1644681798472,5.26,95.086,95.001,2.62390296]
[1644681798875,15.7914,95.08,95.001,2.62390296]
[1644681799073,5.26,95.079,95.002,35.641463]
[1644681799473,5.26,95.079,95.003,2.62390296]
[1644681799674,62.0,95.078,94.99,15.7916]
[1644681799875,15.7932,95.07,94.992,2.62390296]
[1644681800074,12.64,95.06,94.962,5.26]
[1644681800475,7.88490296,95.059,94.962,5.26]
[1644681800675,41.06096615,95.058,94.962,5.26]
[1644681800874,5.261,95.057,94.962,5.26]
[1644681801478,2.62390296,95.056,94.891,54.7081748]
[1644681801674,15.7988,95.04,94.91,15.8042]
[1644681801875,5.264,95.039,94.91,15.8042]
[1644681802078,0.48,95.03,94.892,22.7662036]
[1644681802276,12.64,95.02,94.91,38.39007405]
[1644681802475,52.07553535,95.019,94.91,38.39007405]
[1644681802974,52.07553535,95.019,94.893,17.5022036]
[1644681803175,54.69943831,95.019,94.893,17.5022036]
[1644681803375,16.2878,95.01,94.872,14.92213233]
[1644681803578,13.12,95.0,94.872,14.92213233]
[1644681803776,40.07730855,94.998,94.873,38.48087974]
[1644681803981,5.266,94.997,94.873,55.98308334]
[1644681804177,1.46535827,94.996,94.873,55.48308334]
[1644681804477,30.62955827,94.995,94.874,17.5022036]
[1644681804678,23.8982,94.995,94.874,17.5022036]
[1644681804877,15.8113,94.99,94.874,17.5022036]
[1644681805077,12.64,94.98,94.88,15.8094]
[1644681805278,46.65140042,94.979,94.88,15.8094]
[1644681805480,46.65140042,94.979,94.881,17.5022036]
[1644681805677,41.38440042,94.979,94.882,5.267]
[1644681806078,41.38440042,94.979,94.883,17.5022036]
[1644681806278,41.38440042,94.979,94.883,20.12610656]
[1644681806681,41.38440042,94.979,94.883,17.5022036]
[1644681806881,41.38440042,94.979,94.891,34.4146388]
[1644681807080,5.266,94.978,94.891,34.4146388]
[1644681809280,41.38440042,94.979,94.891,34.4146388]
[1644681809482,41.38440042,94.979,94.892,2.62390296]
[1644681809883,5.266,94.998,94.893,26.15491592]
[1644681810184,5.266,95.017,94.894,28.77881888]
[1644681810385,5.266,95.044,94.894,43.70095121]
[1644681810584,106.0,95.047,94.9,15.8062]
[1644681810785,40.44998711,95.017,94.9,15.8062]
[1644681810985,86.46628711,95.017,94.901,5.265]
[1644681811186,86.46628711,95.017,94.901,16.93887026]
[1644681811385,86.46628711,95.017,94.902,19.56277322]
[1644681811590,81.20128711,95.017,94.902,19.56277322]
[1644681811787,81.20128711,95.017,94.903,24.82777322]
[1644681811987,81.20128711,95.017,94.903,19.56277322]
[1644681812187,81.20128711,95.017,94.904,24.82777322]
[1644681812387,81.20128711,95.017,94.904,19.56277322]
[1644681812586,81.20128711,95.017,94.906,38.30471331]
[1644681812789,5.265,95.016,94.931,34.30992124]
[1644681812990,12.64,95.01,94.931,34.30992124]
[1644681813189,5.264,95.009,94.931,34.30992124]
[1644681813391,81.20128711,95.017,94.931,34.30992124]
[1644681813592,12.64,95.01,94.931,34.30992124]
[1644681813791,5.264,95.009,94.905,2.62390296]
[1644681813990,106.0,95.009,94.905,2.62390296]
[1644681814617,5.265,95.008,94.893,5.264]
[1644681815019,2.62390296,95.007,94.893,5.264]
[1644681815317,16.2875,95.0,94.893,5.264]
[1644681815516,13.12,94.99,94.893,5.264]
[1644681815718,5.266,94.989,94.893,5.264]
[1644681816018,7.88990296,94.989,94.893,5.264]
[1644681816316,41.11615699,94.988,94.893,5.264]
[1644681816515,5.266,94.987,94.893,5.264]
[1644681816718,15.8121,94.98,94.893,5.264]
[1644681816918,12.64,94.97,94.883,40.70362666]
[1644681817119,40.15660964,94.968,94.883,40.70362666]
[1644681817317,5.267,94.967,94.883,40.70362666]
[1644681818018,5.267,94.967,94.884,2.62390296]
[1644681818620,5.267,94.967,94.883,40.70362666]
[1644681819020,5.267,94.967,94.88,15.8099]
[1644681819627,5.267,94.967,94.87,2.62390296]
[1644681820023,5.267,94.967,94.859,47.17114129]
[1644681820024,111.267,94.967,94.859,47.17114129]
[1644681820224,106.0,94.965,94.859,47.17114129]
[1644681820526,106.0,94.965,94.852,2.62390296]
[1644681820527,5.268,94.964,94.852,2.62390296]
[1644681820724,5.268,94.964,94.8,12.64]
[1644681820725,12.64,94.95,94.827,5.268]
[1644681820924,30.0524,94.949,94.827,5.268]
[1644681821326,106.0,94.948,94.828,19.56277322]
[1644681821525,39.890155,94.947,94.829,46.76094349]
[1644681821729,106.0,94.946,94.829,49.38484645]
[1644681821942,5.269,94.945,94.83,2.62390296]
[1644681822134,5.269,94.945,94.831,5.269]
[1644681822135,106.0,94.939,94.831,5.269]
[1644681822337,106.0,94.939,94.83,18.44180296]
[1644681822537,5.269,94.938,94.83,18.44180296]
[1644681822733,5.269,94.938,94.831,2.62390296]
[1644681822934,5.269,94.938,94.832,5.269]
[1644681823133,106.0,94.939,94.832,5.269]
[1644681823333,106.0,94.939,94.84,15.8157]
[1644681823633,5.269,94.938,94.84,15.8157]
[1644681823833,22.9167,94.937,94.841,2.62390296]
[1644681824033,5.269,94.936,94.841,2.62390296]
[1644681824534,5.269,94.936,94.829,41.49194349]
[1644681825033,5.269,94.936,94.841,2.62390296]
[1644681825434,5.269,94.936,94.842,16.11878956]
[1644681825633,22.9167,94.937,94.842,33.05765982]
[1644681825833,5.269,94.936,94.843,2.62390296]
[1644681826035,5.269,94.936,94.844,36.53206044]
[1644681826533,5.269,94.936,94.845,2.62390296]
[1644681826735,22.9167,94.937,94.845,7.89290296]
[1644681827140,22.9167,94.937,94.846,19.56277322]
[1644681827338,5.269,94.944,94.85,15.8156]
[1644681827537,5.269,94.944,94.847,5.269]
[1644681827538,23.3903,94.945,94.851,5.268]
[1644681827737,23.3903,94.945,94.851,19.56277322]
[1644681827938,23.3903,94.945,94.852,5.268]
[1644681828237,5.268,94.944,94.87,15.811]
[1644681828438,5.268,94.944,94.871,36.10935182]
[1644681828838,5.268,94.944,94.87,15.811]
[1644681829938,12.748,94.944,94.853,2.62390296]
[1644681830141,24.2563,94.943,94.837,2.62390296]
[1644681830345,12.64,94.94,94.825,5.268]
[1644681830641,5.269,94.939,94.825,5.268]
[1644681830841,111.269,94.939,94.826,49.74038341]
[1644681831243,111.269,94.939,94.827,2.62390296]
[1644681831443,2.62390296,94.938,94.825,5.268]
[1644681831643,5.269,94.937,94.825,5.268]
[1644681831842,1.46535827,94.919,94.825,5.268]
[1644681832043,12.64,94.91,94.825,5.268]
[1644681832245,5.269,94.909,94.804,41.02902376]
[1644681832444,106.0,94.907,94.804,41.02902376]
[1644681832644,5.271,94.906,94.804,41.02902376]
[1644681833070,23.7517,94.905,94.804,41.02902376]
[1644681833242,23.7517,94.905,94.805,2.62390296]
[1644681833243,106.0,94.902,94.805,2.62390296]
[1644681833442,5.271,94.901,94.805,7.89490296]
[1644681833645,106.0,94.902,94.805,24.01369252]
[1644681833842,106.0,94.902,94.806,31.91154253]
[1644681834043,5.271,94.901,94.806,31.91154253]
[1644681834243,5.271,94.901,94.805,21.38978956]
[1644681834244,5.271,94.901,94.807,31.91154253]
[1644681834646,5.271,94.901,94.808,2.62390296]
[1644681834842,5.271,94.901,94.81,15.8225]
[1644681835342,5.271,94.901,94.811,2.62390296]
[1644681835543,106.0,94.902,94.811,7.89490296]
[1644681835743,106.0,94.902,94.811,2.62390296]
[1644681835945,106.0,94.902,94.812,7.89490296]
[1644681836142,106.0,94.902,94.812,2.62390296]
[1644681836343,106.0,94.902,94.813,2.62390296]
[1644681836743,106.0,94.902,94.806,5.271]
[1644681836945,106.0,94.902,94.805,16.11878956]
[1644681836946,5.271,94.901,94.805,16.11878956]
[1644681837148,12.64,94.9,94.807,2.62390296]
[1644681837345,5.271,94.899,94.807,2.62390296]
[1644681837649,43.727293,94.903,94.81,15.8228]
[1644681838046,43.727293,94.903,94.811,2.62390296]
[1644681838251,43.727293,94.903,94.811,33.04173796]
[1644681838447,43.727293,94.903,94.812,45.40018415]
[1644681838649,43.727293,94.903,94.813,5.271]
[1644681838850,43.727293,94.903,94.813,43.58044003]
[1644681839050,43.727293,94.903,94.813,53.29508711]
[1644681839250,5.271,94.934,94.814,38.30944003]
[1644681839450,5.271,94.934,94.814,57.05213255]
[1644681839654,5.271,94.934,94.816,106.0]
[1644681839851,5.271,94.934,94.83,15.8145]
[1644681840352,45.25807633,94.933,94.831,56.51447532]
[1644681840577,5.271,94.934,94.831,94.82391535]
[1644681840775,23.6862,94.957,94.831,94.82391535]
[1644681840776,23.6862,94.957,94.832,27.77073796]
[1644681840983,1.46535827,94.969,94.86,15.8121]
[1644681841175,24.8138,94.983,94.87,12.64]
[1644681841176,1.46535827,94.979,94.87,12.64]
[1644681841377,5.268,94.982,94.871,5.267]
[1644681841577,43.76873524,94.981,94.872,39.99247258]
[1644681841776,5.267,94.98,94.873,5.267]
[1644681841975,5.267,94.98,94.873,24.00969252]
[1644681842375,5.267,94.98,94.874,18.74269252]
[1644681842675,43.76873524,94.981,94.875,5.267]
[1644681842876,5.267,94.979,94.901,35.91389667]
[1644681843079,43.76873524,94.981,94.901,35.91389667]
[1644681843375,43.76873524,94.981,94.902,2.62390296]
[1644681843874,43.76873524,94.981,94.91,15.8051]
[1644681844275,43.76873524,94.981,94.911,2.62390296]
[1644681844676,5.266,94.98,94.911,2.62390296]
[1644681845075,5.266,94.98,94.92,15.8042]
[1644681845275,43.76873524,94.981,94.92,15.8042]
[1644681845475,5.265,94.98,94.901,35.91389667]
[1644681845675,43.76873524,94.981,94.901,35.91389667]
[1644681845875,43.76873524,94.981,94.903,2.62390296]
[1644681846276,43.76873524,94.981,94.901,35.91389667]
[1644681847179,106.0,94.98,94.901,35.91389667]
[1644681847779,5.266,94.979,94.888,2.62390296]
[1644681847977,5.266,94.979,94.839,5.266]
[1644681847978,1.46535827,94.974,94.839,5.266]
[1644681848180,12.64,94.96,94.833,26.81320296]
[1644681848381,106.0,94.958,94.84,2.62390296]
[1644681848780,44.41431413,94.957,94.841,46.04006502]
[1644681849280,44.41431413,94.957,94.842,2.62390296]
[1644681849481,5.268,94.956,94.842,2.62390296]
[1644681849683,111.268,94.956,94.842,2.62390296]
[1644681849981,111.268,94.956,94.861,34.45872232]
[1644681850582,111.268,94.956,94.84,5.268]
[1644681850785,2.62390296,94.955,94.84,5.268]
[1644681850987,12.64,94.94,94.84,5.268]
[1644681851184,111.269,94.939,94.84,5.268]
[1644681851389,134.5304,94.939,94.84,5.268]
[1644681851585,47.75377065,94.938,94.841,35.59387379]
[1644681851786,111.269,94.937,94.841,35.59387379]
[1644681852185,113.89290296,94.937,94.841,35.59387379]
[1644681852389,2.62390296,94.936,94.829,2.62390296]
[1644681852585,2.62390296,94.936,94.821,64.41368956]
[1644681852586,5.269,94.935,94.842,2.62390296]
[1644681853488,2.62390296,94.934,94.818,1.42813974]
[1644681853688,106.0,94.919,94.808,1.42813974]
[1644681853887,52.8285,94.918,94.819,29.47535977]
[1644681854087,106.0,94.917,94.819,29.47535977]
[1644681854288,5.269,94.916,94.805,29.47535977]
[1644681854494,106.0,94.914,94.805,29.47535977]
[1644681854695,12.64,94.9,94.796,45.86086767]
[1644681854895,40.5313049,94.899,94.796,45.86086767]
[1644681855097,40.5313049,94.899,94.797,29.47535977]
[1644681855497,106.0,94.897,94.797,29.47535977]
[1644681855702,5.271,94.896,94.797,29.47535977]
[1644681856101,7.89490296,94.896,94.797,29.47535977]
[1644681856303,5.271,94.896,94.796,45.86086767]
[1644681856904,5.271,94.896,94.797,2.62390296]
[1644681857104,106.0,94.897,94.797,32.17454487]
[1644681857305,35.2603049,94.899,94.797,32.17454487]
[1644681857504,106.0,94.898,94.798,62.59237987]
[1644681857704,106.0,94.898,94.798,58.74951961]
[1644681857907,106.0,94.898,94.799,37.44554487]
[1644681858106,5.271,94.897,94.799,29.55064191]
[1644681858306,5.271,94.897,94.8,29.55064191]
[1644681858506,23.47,94.896,94.8,29.55064191]
[1644681858709,5.271,94.895,94.796,45.86086767]
[1644681858907,12.64,94.88,94.796,45.86086767]
[1644681859108,42.21217745,94.878,94.775,5.272]
[1644681859332,51.3117,94.877,94.78,15.8272]
[1644681859632,106.0,94.876,94.78,15.8272]
[1644681859835,5.272,94.875,94.781,2.62390296]
[1644681860032,5.272,94.875,94.782,42.18829422]
[1644681860535,5.272,94.875,94.79,15.8265]
[1644681860932,5.272,94.875,94.79,2.62390296]
[1644681861133,5.272,94.875,94.782,42.18829422]
[1644681861533,5.272,94.875,94.784,2.62390296]
[1644681861736,2.62390296,94.874,94.783,29.19371138]
[1644681861936,12.64,94.86,94.757,2.62390296]
[1644681862137,12.64,94.86,94.76,2.62390296]
[1644681862138,133.9489,94.859,94.76,2.62390296]
[1644681862335,133.9489,94.859,94.746,5.273]
[1644681862336,133.9489,94.859,94.745,37.56692718]
[1644681862535,45.29999859,94.858,94.747,5.274]
[1644681862736,5.274,94.857,94.75,15.8321]
[1644681863540,5.274,94.857,94.751,2.62390296]
[1644681863738,111.274,94.857,94.751,2.62390296]
[1644681863937,111.274,94.857,94.752,22.10410554]
[1644681864339,111.274,94.857,94.753,2.62390296]
[1644681866443,106.0,94.857,94.754,5.273]
[1644681866852,106.0,94.857,94.755,2.62390296]
[1644681867041,5.273,94.856,94.76,15.8314]
[1644681867243,5.273,94.857,94.76,15.8314]
[1644681867444,45.29999859,94.858,94.761,5.273]
[1644681867745,5.273,94.856,94.761,16.11878956]
[1644681867943,106.0,94.857,94.763,42.70760973]
[1644681868143,5.274,94.855,94.763,42.70760973]
[1644681868349,5.273,94.856,94.764,2.62390296]
[1644681868543,5.273,94.856,94.763,42.70760973]
[1644681870546,5.273,94.856,94.743,16.93728623]
[1644681871050,5.273,94.856,94.744,18.74269252]
[1644681871449,5.273,94.856,94.745,60.21203456]
[1644681871851,5.273,94.856,94.75,15.8335]
[1644681872253,15.8349,94.85,94.751,2.62390296]
[1644681872452,5.274,94.849,94.751,2.62390296]
[1644681872653,111.274,94.849,94.751,2.62390296]
[1644681873052,111.274,94.849,94.737,5.274]
[1644681873258,2.62390296,94.848,94.736,59.15786661]
[1644681873457,5.274,94.847,94.738,2.62390296]
[1644681873760,2.62390296,94.846,94.738,2.62390296]
[1644681873956,106.0,94.845,94.738,2.62390296]
[1644681874159,12.64,94.84,94.738,2.62390296]
[1644681874360,156.56654233,94.839,94.738,2.62390296]
[1644681877063,156.56654233,94.839,94.739,37.99325515]
[1644681877461,156.56654233,94.839,94.74,2.62390296]
[1644681877863,156.56654233,94.839,94.737,16.11878956]